fUSD/lending_fUSD_20250206
["ID","MTS","AMOUNT","RATE_DAILY","PERIOD"]
[351864960,1738824669090,-500.0,0.0002,3]
[351864961,1738824669099,-500.0,0.0002,3]
[351864962,1738824669108,-500.0,0.0002,3]
[351864963,1738824669118,-500.0,0.0002,3]
[351864964,1738824669128,-500.0,0.0002,3]
[351864965,1738824669138,-500.0,0.0002,3]
[351864966,1738824669147,-500.0,0.0002,3]
[351864967,1738824669157,-500.0,0.0002,3]
[351864968,1738824669166,-500.0,0.0002,3]
[351864969,1738824669176,-500.0,0.0002,3]
[351864970,1738824669185,-573.00840359,0.0002,3]
[351864971,1738824669195,-505.39710402,0.0002,3]
[351864972,1738824669205,-500.0,0.0002,3]
[351864973,1738824669214,-505.78065803,0.0002,3]
[351864974,1738824669224,-500.0,0.0002,3]
[351864975,1738824669234,-500.0,0.0002,3]
[351864976,1738824669244,-500.0,0.0002,3]
[351864977,1738824669253,-500.0,0.0002,3]
[351864978,1738824669263,-500.0,0.0002,3]
[351864979,1738824669273,-505.50596222,0.0002,3]
[351864980,1738824669283,-561.92056775,0.0002,3]
[351864981,1738824669293,-500.0,0.0002,3]
[351864982,1738824669302,-500.0,0.0002,3]
[351864983,1738824669312,-500.0,0.0002,3]
[351864984,1738824669322,-500.0,0.0002,3]
[351864985,1738824669331,-500.0,0.0002,3]
[351864986,1738824669341,-500.0,0.0002,3]
[351864987,1738824669350,-503.50993622,0.0002,3]
[351864988,1738824669360,-500.0,0.0002,3]
[351864989,1738824669369,-500.0,0.0002,3]
[351864990,1738824669379,-500.0,0.0002,3]
[351864991,1738824669388,-500.70398151,0.0002,3]
[351864992,1738824669397,-193.0,0.0002,30]
[351864993,1738824669407,-500.0,0.0002,3]
[351864994,1738824669416,-500.0,0.0002,3]
[351864995,1738824669425,-500.0,0.0002,3]
[351864996,1738824669434,-500.0,0.0002,3]
[351864997,1738824669443,-500.0,0.0002,3]
[351864998,1738824669452,-500.0,0.0002,3]
[351864999,1738824669462,-501.42318138,0.0002,3]
[351865000,1738824669472,-500.0,0.0002,3]
[351865001,1738824669481,-500.0,0.0002,3]
[351865002,1738824669491,-500.0,0.0002,3]
[351865003,1738824669500,-500.0,0.0002,3]
[351865004,1738824669510,-500.0,0.0002,3]
[351865005,1738824669520,-500.0,0.0002,3]
[351865006,1738824669530,-500.0,0.0002,3]
[351865007,1738824669540,-500.0,0.0002,3]
[351865008,1738824669551,-500.0,0.0002,3]
[351865009,1738824669560,-500.0,0.0002,3]
[351865010,1738824669570,-500.0,0.0002,3]
[351865011,1738824669579,-500.0,0.0002,3]
[351865012,1738824669589,-500.0,0.0002,3]
[351865013,1738824669599,-500.0,0.0002,3]
[351865014,1738824669608,-500.0,0.0002,3]
[351865015,1738824669618,-500.0,0.0002,3]
[351865016,1738824669629,-500.0,0.0002,3]
[351865017,1738824669639,-500.0,0.0002,3]
[351865018,1738824669649,-500.0,0.0002,3]
[351865019,1738824669663,-500.0,0.0002,3]
[351865020,1738824669673,-500.0,0.0002,3]
[351865021,1738824669682,-506.9174051,0.0002,3]
[351865022,1738824669691,-500.0,0.0002,3]
[351865023,1738824669700,-169.01599269,0.0002,3]
[351865024,1738824669711,-500.0,0.0002,3]
[351865025,1738824669722,-500.0,0.0002,3]
[351865026,1738824669731,-500.0,0.0002,3]
[351865027,1738824669740,-502.33431812,0.0002,3]
[351865028,1738824669750,-500.0,0.0002,3]
[351865029,1738824669761,-500.0,0.0002,3]
[351865030,1738824669772,-500.0,0.0002,3]
[351865031,1738824669781,-500.0,0.0002,3]
[351865032,1738824669791,-500.0,0.0002,3]
[351865033,1738824669801,-490.84997039,0.0002,3]
[351865034,1738824669810,-500.0,0.0002,3]
[351865035,1738824669820,-500.0,0.0002,3]
[351865036,1738824669829,-500.0,0.0002,3]
[351865037,1738824669838,-500.0,0.0002,3]
[351865038,1738824669849,-500.0,0.0002,3]
[351865039,1738824669860,-500.0,0.0002,3]
[351865040,1738824669871,-500.0,0.0002,3]
[351865041,1738824669881,-500.0,0.0002,3]
[351865042,1738824669891,-500.0,0.0002,3]
[351865043,1738824669901,-500.0,0.0002,3]
[351865044,1738824669911,-500.0,0.0002,3]
[351865045,1738824669921,-500.0,0.0002,3]
[351865046,1738824669931,-505.17239673,0.0002,3]
[351865047,1738824669940,-500.0,0.0002,3]
[351865048,1738824669950,-500.0,0.0002,3]
[351865049,1738824669960,-500.0,0.0002,3]
[351865050,1738824669970,-500.0,0.0002,3]
[351865051,1738824669980,-621.44737626,0.0002,3]
[351865052,1738824669989,-500.0,0.0002,3]
[351865053,1738824669999,-500.0,0.0002,3]
[351865054,1738824670008,-500.0,0.0002,3]
[351865055,1738824670018,-500.0,0.0002,3]
[351865056,1738824670027,-500.0,0.0002,3]
[351865057,1738824670036,-500.0,0.0002,3]
[351865058,1738824670046,-500.0,0.0002,3]
[351865059,1738824670056,-500.0,0.0002,3]
[351865060,1738824670065,-500.0,0.0002,3]
[351865061,1738824670075,-212.53932713,0.0002,3]
[351865062,1738824670084,-500.0,0.0002,3]
[351865063,1738824670093,-500.0,0.0002,3]
[351865064,1738824670103,-500.0,0.0002,3]
[351865065,1738824670114,-500.0,0.0002,3]
[351865066,1738824670124,-500.0,0.0002,3]
[351865067,1738824670133,-500.0,0.0002,3]
[351865068,1738824670143,-166.01301306,0.0002,3]
[351865069,1738824670152,-551.91109949,0.0002,3]
[351865070,1738824670162,-500.0,0.0002,3]
[351865071,1738824670172,-232.83473385,0.0002,3]
[351865072,1738824670182,-500.0,0.0002,3]
[351865073,1738824670192,-500.0,0.0002,3]
[351865074,1738824670202,-500.0,0.0002,3]
[351865075,1738824670213,-500.0,0.0002,3]
[351865076,1738824670222,-500.0,0.0002,3]
[351865077,1738824670232,-500.0,0.0002,3]
[351865078,1738824670242,-608.78590633,0.0002,3]
[351865079,1738824670251,-500.0,0.0002,3]
[351865080,1738824670261,-500.0,0.0002,3]
[351865081,1738824670271,-500.0,0.0002,3]
[351865082,1738824670280,-500.0,0.0002,3]
[351865083,1738824670289,-500.0,0.0002,3]
[351865084,1738824670300,-500.0,0.0002,3]
[351865085,1738824670310,-500.0,0.0002,3]
[351865086,1738824670320,-153.20200126,0.0002,3]
[351865087,1738824670330,-500.0,0.0002,3]
[351865088,1738824670339,-500.0,0.0002,3]
[351865089,1738824670349,-500.0,0.0002,3]
[351865090,1738824670358,-500.0,0.0002,3]
[351865091,1738824670368,-519.86858643,0.0002,3]
[351865092,1738824670378,-500.0,0.0002,3]
[351865093,1738824670387,-500.0,0.0002,3]
[351865094,1738824670397,-500.0,0.0002,3]
[351865095,1738824670407,-593.69764448,0.0002,3]
[351865096,1738824670417,-500.0,0.0002,3]
[351865097,1738824670427,-500.0,0.0002,3]
[351865098,1738824670436,-500.0,0.0002,3]
[351865099,1738824670533,-501.01844504,0.0002,3]
[351865100,1738824670545,-500.0,0.0002,3]
[351865101,1738824670555,-500.0,0.0002,3]
[351865102,1738824670565,-500.0,0.0002,3]
[351865103,1738824670575,-500.0,0.0002,3]
[351865104,1738824670585,-601.22438945,0.0002,3]
[351865105,1738824670595,-500.0,0.0002,3]
[351865106,1738824670605,-500.0,0.0002,3]
[351865107,1738824670615,-500.0,0.0002,3]
[351865108,1738824670625,-502.00679634,0.0002,3]
[351865109,1738824670635,-501.84145718,0.0002,3]
[351865110,1738824670645,-500.0,0.0002,3]
[351865111,1738824670656,-500.0,0.0002,3]
[351865112,1738824670669,-500.0,0.0002,3]
[351865113,1738824670679,-500.0,0.0002,3]
[351865114,1738824670690,-500.0,0.0002,3]
[351865115,1738824670700,-500.0,0.0002,3]
[351865116,1738824670710,-279.12867044,0.0002,3]
[351865117,1738824670720,-500.0,0.0002,3]
[351865118,1738824670730,-500.0,0.0002,3]
[351865119,1738824670740,-620.7141407,0.0002,3]
[351865120,1738824670750,-500.0,0.0002,3]
[351865121,1738824670759,-202.68872372,0.0002,3]
[351865122,1738824670769,-500.0,0.0002,3]
[351865123,1738824670779,-500.0,0.0002,3]
[351865124,1738824670789,-501.29706162,0.0002,3]
[351865125,1738824670799,-500.0,0.0002,3]
[351865126,1738824670809,-500.0,0.0002,3]
[351865127,1738824670818,-500.0,0.0002,3]
[351865128,1738824670828,-500.0,0.0002,3]
[351865129,1738824670838,-500.0,0.0002,3]
[351865130,1738824670849,-500.0,0.0002,3]
[351865131,1738824670859,-500.0,0.0002,3]
[351865132,1738824670869,-500.0,0.0002,3]
[351865133,1738824670879,-500.0,0.0002,3]
[351865134,1738824670888,-504.9969709,0.0002,3]
[351865135,1738824670897,-504.28322193,0.0002,3]
[351865136,1738824670907,-500.0,0.0002,3]
[351865137,1738824670916,-500.0,0.0002,3]
[351865138,1738824670925,-500.0,0.0002,3]
[351865139,1738824670935,-500.0,0.0002,3]
[351865140,1738824670944,-500.0,0.0002,3]
[351865141,1738824670954,-500.0,0.0002,3]
[351865142,1738824670964,-536.76332103,0.0002,3]
[351865143,1738824670974,-500.0,0.0002,3]
[351865144,1738824670983,-500.0,0.0002,3]
[351865145,1738824670994,-500.0,0.0002,3]
[351865146,1738824671003,-500.0,0.0002,3]
[351865147,1738824671013,-500.0,0.0002,3]
[351865148,1738824671023,-500.0,0.0002,3]
[351865149,1738824671032,-500.0,0.0002,3]
[351865150,1738824671041,-504.48192549,0.0002,3]
[351865151,1738824671052,-500.0,0.0002,3]
[351865152,1738824671061,-500.0,0.0002,3]
[351865153,1738824671070,-500.0,0.0002,3]
[351865154,1738824671079,-500.0,0.0002,3]
[351865155,1738824671088,-500.0,0.0002,3]
[351865156,1738824671097,-500.0,0.0002,3]
[351865157,1738824671107,-500.0,0.0002,3]
[351865158,1738824671116,-500.0,0.0002,3]
[351865159,1738824671126,-500.0,0.0002,3]
[351865160,1738824671136,-507.66220526,0.0002,3]
[351865161,1738824671145,-500.0,0.0002,3]
[351865162,1738824671154,-500.0,0.0002,3]
[351865163,1738824671164,-500.0,0.0002,3]
[351865164,1738824671173,-500.0,0.0002,3]
[351865165,1738824671183,-258.92862317,0.0002,3]
[351865166,1738824671192,-500.0,0.0002,3]
[351865167,1738824671202,-515.81763715,0.0002,3]
[351865168,1738824671211,-500.0,0.0002,3]
[351865169,1738824671221,-500.0,0.0002,3]
[351865170,1738824671231,-500.0,0.0002,3]
[351865171,1738824671240,-509.14008062,0.0002,3]
[351865172,1738824671249,-500.0,0.0002,3]
[351865173,1738824671259,-500.0,0.0002,3]
[351865174,1738824671269,-500.0,0.0002,3]
[351865175,1738824671278,-244.88161337,0.0002,3]
[351865176,1738824671288,-500.0,0.0002,3]
[351865177,1738824671299,-500.0,0.0002,3]
[351865178,1738824671309,-500.0,0.0002,3]
[351865179,1738824671319,-500.0,0.0002,3]
[351865180,1738824671329,-500.0,0.0002,3]
[351865181,1738824671339,-504.58460537,0.0002,3]
[351865182,1738824671348,-500.0,0.0002,3]
[351865183,1738824671358,-264.86289535,0.0002,3]
[351865184,1738824671367,-500.0,0.0002,3]
[351865185,1738824671376,-500.0,0.0002,3]
[351865186,1738824671386,-500.0,0.0002,3]
[351865187,1738824671395,-500.0,0.0002,3]
[351865188,1738824671404,-503.82883455,0.0002,3]
[351865189,1738824671414,-500.0,0.0002,3]
[351865190,1738824671423,-500.0,0.0002,3]
[351865191,1738824671434,-500.0,0.0002,3]
[351865192,1738824671444,-500.0,0.0002,3]
[351865193,1738824671455,-500.0,0.0002,3]
[351865194,1738824671464,-555.89925467,0.0002,3]
[351865195,1738824671473,-500.0,0.0002,3]
[351865196,1738824671483,-500.0,0.0002,3]
[351865197,1738824671492,-500.0,0.0002,3]
[351865198,1738824671501,-202.2431959,0.0002,3]
[351865199,1738824671510,-500.0,0.0002,3]
[351865200,1738824671520,-500.0,0.0002,3]
[351865201,1738824671529,-500.0,0.0002,3]
[351865202,1738824671539,-500.0,0.0002,3]
[351865203,1738824671549,-500.0,0.0002,3]
[351865204,1738824671558,-500.0,0.0002,3]
[351865205,1738824671568,-500.0,0.0002,3]
[351865206,1738824671577,-500.0,0.0002,3]
[351865207,1738824671587,-500.0,0.0002,3]
[351865208,1738824671597,-501.39239315,0.0002,3]
[351865209,1738824671606,-500.0,0.0002,3]
[351865210,1738824671616,-500.0,0.0002,3]
[351865211,1738824671626,-500.0,0.0002,3]
[351865212,1738824671636,-500.0,0.0002,3]
[351865213,1738824671645,-500.0,0.0002,3]
[351865214,1738824671655,-500.0,0.0002,3]
[351865215,1738824671669,-500.0,0.0002,3]
[351865216,1738824671679,-500.0,0.0002,3]
[351865217,1738824671689,-500.0,0.0002,3]
[351865218,1738824671698,-500.0,0.0002,3]
[351865219,1738824671709,-500.0,0.0002,3]
[351865220,1738824671719,-500.0,0.0002,3]
[351865221,1738824671730,-500.0,0.0002,3]
[351865222,1738824671741,-504.10851657,0.0002,3]
[351865223,1738824671751,-500.0,0.0002,3]
[351865224,1738824671761,-500.0,0.0002,3]
[351865225,1738824671771,-500.0,0.0002,3]
[351865226,1738824671780,-500.0,0.0002,3]
[351865227,1738824671790,-179.33276746,0.0002,3]
[351865228,1738824671800,-500.0,0.0002,3]
[351865229,1738824671809,-500.0,0.0002,3]
[351865230,1738824671819,-500.0,0.0002,3]
[351865231,1738824671829,-627.54277023,0.0002,3]
[351865232,1738824671838,-500.0,0.0002,3]
[351865233,1738824671848,-500.0,0.0002,2]
[351865234,1738824671859,-500.0,0.0002,3]
[351865235,1738824671869,-500.0,0.0002,3]
[351865236,1738824671879,-501.04545209,0.0002,2]
[351865237,1738824671888,-500.30275476,0.0002,3]
[351865238,1738824671898,-500.0,0.0002,3]
[351865239,1738824671907,-500.0,0.0002,3]
[351865240,1738824671917,-339.23684329,0.0002,3]
[351865241,1738824671926,-500.0,0.0002,3]
[351865242,1738824671936,-157.79316367,0.0002,3]
[351865243,1738824671945,-500.0,0.0002,3]
[351865244,1738824671954,-500.0,0.0002,3]
[351865245,1738824671963,-500.44121385,0.0002,3]
[351865246,1738824671973,-500.0,0.0002,3]
[351865247,1738824671982,-500.0,0.0002,3]
[351865248,1738824671992,-500.0,0.0002,3]
[351865249,1738824672001,-500.0,0.0002,3]
[351865250,1738824672011,-500.0,0.0002,3]
[351865251,1738824672021,-538.60364478,0.0002,3]
[351865252,1738824672031,-500.0,0.0002,3]
[351865253,1738824672040,-500.0,0.0002,2]
[351865254,1738824672051,-500.0,0.0002,3]
[351865255,1738824672060,-500.0,0.0002,3]
[351865256,1738824672070,-500.73944449,0.0002,2]
[351865257,1738824672081,-500.0,0.0002,3]
[351865258,1738824672090,-500.0,0.0002,3]
[351865259,1738824672100,-500.0,0.0002,3]
[351865260,1738824672109,-500.0,0.0002,3]
[351865261,1738824672119,-500.0,0.0002,3]
[351865262,1738824672214,-500.0,0.0002,3]
[351865263,1738824672224,-500.0,0.0002,3]
[351865264,1738824672234,-500.0,0.0002,3]
[351865265,1738824672243,-500.0,0.0002,3]
[351865266,1738824672254,-500.41637578,0.0002,3]
[351865267,1738824672263,-500.0,0.0002,3]
[351865268,1738824672272,-500.0,0.0002,3]
[351865269,1738824672282,-500.0,0.0002,3]
[351865270,1738824672292,-500.0,0.0002,3]
[351865271,1738824672302,-500.0,0.0002,3]
[351865272,1738824672312,-500.0,0.0002,3]
[351865273,1738824672321,-500.0,0.0002,3]
[351865274,1738824672331,-500.0,0.0002,3]
[351865275,1738824672341,-500.0,0.0002,3]
[351865276,1738824672351,-150.0,0.00020002,2]
[351865277,1738824672362,-150.0,0.00020004,2]
[351865278,1738824672372,-150.0,0.00020004,2]
[351865279,1738824672382,-150.0,0.00020006,2]
[351865280,1738824672392,-150.0,0.00020012,2]
[351865281,1738824672403,-150.0,0.00020012,2]
[351865282,1738824672413,-1000.0,0.00020012,2]
[351865283,1738824672423,-1000.0,0.00020015,2]
[351865284,1738824672432,-150.0,0.00020017,2]
[351865285,1738824672442,-150.0,0.00020018,2]
[351865286,1738824672452,-150.0,0.00020018,2]
[351865287,1738824672462,-150.0,0.00020022,2]
[351865288,1738824672472,-150.0,0.00020025,2]
[351865289,1738824672483,-150.0,0.00020027,2]
[351865290,1738824672492,-150.0,0.00020031,2]
[351865291,1738824672502,-150.0,0.00020032,2]
[351865292,1738824672512,-260.53813755,0.00020034,2]
[351865293,1738824672521,-150.0,0.00020038,2]
[351865294,1738824672531,-767.34667111,0.00020038,2]
[351865295,1738824672540,-968.68,0.0002004,2]
[351865296,1738824672549,-12500.0,0.0002004,2]
[351865297,1738824672559,-150.0,0.00020044,2]
[351865298,1738824672569,-150.0,0.00020045,2]
[351865299,1738824672578,-150.0,0.00020045,2]
[351865300,1738824672588,-150.0,0.00020047,2]
[351865301,1738824672598,-150.0,0.00020047,2]
[351865302,1738824672607,-150.0,0.00020052,2]
[351865303,1738824672616,-162.94,0.00020052,2]
[351865304,1738824672627,-150.0,0.00020055,2]
[351865305,1738824672636,-150.0,0.00020056,2]
[351865306,1738824672646,-150.0,0.00020057,2]
[351865307,1738824672657,-150.0,0.00020057,2]
[351865308,1738824672669,-1000.0,0.00020061,2]
[351865309,1738824672679,-364.6304693,0.00020062,2]
[351865310,1738824672689,-150.0,0.00020063,2]
[351865311,1738824672699,-1000.0,0.00020065,2]
[351865312,1738824672709,-1000.0,0.00020066,2]
[351865313,1738824672719,-150.0,0.00020067,2]
[351865314,1738824672728,-150.0,0.00020068,2]
[351865315,1738824672740,-150.0,0.00020068,2]
[351865316,1738824672750,-150.0,0.00020069,2]
[351865317,1738824672759,-150.0,0.00020071,2]
[351865318,1738824672769,-150.0,0.00020073,2]
[351865319,1738824672779,-150.0,0.00020073,2]
[351865320,1738824672788,-150.0,0.00020074,2]
[351865321,1738824672797,-150.0,0.00020074,2]
[351865322,1738824672807,-150.0,0.00020077,2]
[351865323,1738824672816,-1668.92,0.0002008,2]
[351865324,1738824672826,-150.0,0.0002008,2]
[351865325,1738824672836,-172.91,0.00020082,2]
[351865326,1738824672846,-1000.0,0.00020084,2]
[351865327,1738824672855,-150.0,0.00020086,2]
[351865328,1738824672865,-150.0,0.00020086,2]
[351865329,1738824672875,-150.0,0.0002009,2]
[351865330,1738824672885,-150.0,0.00020091,2]
[351865331,1738824672895,-150.0,0.00020095,2]
[351865332,1738824672904,-150.0,0.00020097,2]
[351865333,1738824672913,-500.0,0.00020098,3]
[351865334,1738824672922,-500.0,0.00020098,3]
[351865335,1738824672931,-500.0,0.00020098,3]
[351865336,1738824672940,-427.06567529,0.00020098,3]
[351865337,1738824672950,-500.0,0.00020098,3]
[351865338,1738824672960,-500.0,0.00020098,3]
[351865339,1738824672969,-500.0,0.00020098,3]
[351865340,1738824672978,-500.0,0.00020098,3]
[351865341,1738824672988,-500.0,0.00020098,3]
[351865342,1738824672997,-500.0,0.00020098,3]
[351865343,1738824673006,-500.0,0.00020098,3]
[351865344,1738824673015,-500.0,0.00020098,3]
[351865345,1738824673024,-522.98,0.00020098,3]
[351865346,1738824673035,-500.0,0.00020098,3]
[351865347,1738824673044,-500.0,0.00020098,3]
[351865348,1738824673053,-150.0,0.00020098,2]
[351865349,1738824673063,-150.0,0.00020098,2]
[351865350,1738824673072,-150.0,0.00020098,2]
[351865351,1738824673081,-500.0,0.00020098,3]
[351865352,1738824673091,-500.0,0.00020098,3]
[351865353,1738824673100,-354.52242322,0.00020098,3]
[351865354,1738824673110,-500.0,0.00020098,3]
[351865355,1738824673119,-500.0,0.00020098,3]
[351865356,1738824673128,-500.0,0.00020099,3]
[351865357,1738824673138,-268.59653979,0.00020099,3]
[351865358,1738824673147,-500.0,0.00020099,3]
[351865359,1738824673157,-535.28510534,0.00020099,3]
[351865360,1738824673166,-388.76057198,0.00020099,3]
[351865361,1738824673175,-557.54758573,0.00020099,3]
[351865362,1738824673185,-500.0,0.00020099,3]
[351865363,1738824673194,-935.78,0.00020099,3]
[351865364,1738824673204,-493.8332904,0.00020099,3]
[351865365,1738824673214,-500.0,0.00020099,3]
[351865366,1738824673224,-500.0,0.00020099,3]
[351865367,1738824673234,-509.28599199,0.00020099,3]
[351865368,1738824673243,-587.03883761,0.00020099,3]
[351865369,1738824673252,-500.0,0.00020099,3]
[351865370,1738824673263,-525.01,0.00020099,3]
[351865371,1738824673272,-500.0,0.00020099,3]
[351865372,1738824673282,-500.0,0.00020099,3]
[351865373,1738824673291,-500.0,0.00020099,3]
[351865374,1738824673300,-500.0,0.00020099,3]
[351865375,1738824673309,-625.024787,0.00020099,3]
[351865376,1738824673319,-500.0,0.00020099,3]
[351865377,1738824673328,-284.34418325,0.00020099,3]
[351865378,1738824673337,-619.51,0.00020099,3]
[351865379,1738824673347,-500.0,0.00020099,3]
[351865380,1738824673356,-281.967746,0.00020099,3]
[351865381,1738824673365,-500.0,0.00020099,3]
[351865382,1738824673375,-500.0,0.00020099,3]
[351865383,1738824673384,-360.77655595,0.00020099,3]
[351865384,1738824673393,-500.0,0.00020099,3]
[351865385,1738824673402,-500.0,0.00020099,3]
[351865386,1738824673411,-722.16,0.000201,31]
[351865387,1738824673421,-722.16,0.000201,31]
[351865388,1738824673430,-722.16,0.000201,31]
[351865389,1738824673440,-722.16,0.000201,31]
[351865390,1738824673449,-722.16,0.000201,31]
[351865391,1738824673458,-722.16,0.000201,31]
[351865392,1738824673468,-722.16,0.000201,31]
[351865393,1738824673477,-722.16,0.000201,31]
[351865394,1738824673486,-722.16,0.000201,31]
[351865395,1738824673495,-722.16,0.000201,31]
[351865396,1738824673505,-722.16,0.000201,31]
[351865397,1738824673514,-722.16,0.000201,31]
[351865398,1738824673524,-722.16,0.000201,31]
[351865399,1738824673533,-722.16,0.000201,31]
[351865400,1738824673542,-722.16,0.000201,31]
[351865401,1738824673552,-722.16,0.000201,31]
[351865402,1738824673562,-1000.0,0.00020103,2]
[351865403,1738824673572,-150.0,0.00020116,2]
[351865404,1738824673583,-1000.0,0.00020117,2]
[351865405,1738824673594,-500.0,0.0002012,2]
[351865406,1738824673604,-701.46773551,0.0002012,2]
[351865407,1738824673614,-150.0,0.0002012,2]
[351865408,1738824673625,-150.0,0.0002012,2]
[351865409,1738824673634,-2009.2476,0.00020121,2]
[351865410,1738824673644,-4325.34,0.00020121,3]
[351865411,1738824673733,-500.0,0.00020121,3]
[351865412,1738824673745,-500.0,0.00020121,3]
[351865413,1738824673755,-1383.97,0.00020121,3]
[351865414,1738824673765,-500.0,0.00020121,3]
[351865415,1738824673775,-736.14,0.00020121,3]
[351865416,1738824673785,-500.0,0.00020121,3]
[351865417,1738824673795,-281.84680259,0.00020121,3]
[351865418,1738824673804,-500.0,0.00020121,3]
[351865419,1738824673814,-775.78,0.00020121,3]
[351865420,1738824673823,-500.0,0.00020121,3]
[351865421,1738824673833,-150.32872794,0.00020122,2]
[351865422,1738824673847,-500.0,0.00020123,3]
[351865423,1738824673857,-500.0,0.00020123,3]
[351865424,1738824673868,-500.0,0.00020123,3]
[351865425,1738824673878,-699.21105374,0.00020124,2]
[351865426,1738824673888,-699.21105374,0.00020124,2]
[351865427,1738824673897,-699.21105374,0.00020124,2]
[351865428,1738824673907,-699.21105374,0.00020124,2]
[351865429,1738824673916,-699.21105374,0.00020124,2]
[351865430,1738824673926,-699.21105374,0.00020124,2]
[351865431,1738824673936,-699.21105374,0.00020124,2]
[351865432,1738824673946,-699.21105374,0.00020124,2]
[351865433,1738824673956,-699.21105374,0.00020124,2]
[351865434,1738824673965,-699.21105374,0.00020124,2]
[351865435,1738824673975,-699.21105374,0.00020124,2]
[351865436,1738824673984,-699.21105374,0.00020124,2]
[351865437,1738824673994,-699.21105374,0.00020124,2]
[351865438,1738824674004,-699.21105374,0.00020124,2]
[351865439,1738824674013,-699.21105374,0.00020124,2]
[351865440,1738824674023,-699.21105374,0.00020124,2]
[351865441,1738824674032,-699.21105374,0.00020124,2]
[351865442,1738824674041,-699.21105374,0.00020124,2]
[351865443,1738824674051,-699.21105374,0.00020124,2]
[351865444,1738824674060,-699.21,0.00020124,2]
[351865445,1738824674069,-150.0,0.00020128,2]
[351865446,1738824674078,-150.0,0.00020128,2]
[351865447,1738824674088,-150.0,0.0002013,2]
[351865448,1738824674097,-150.0,0.00020144,2]
[351865449,1738824674107,-150.0,0.00020145,2]
[351865450,1738824674116,-150.0,0.00020148,2]
[351865451,1738824674125,-30000.0,0.00020148,3]
[351865452,1738824674135,-150.0,0.0002015,2]
[351865453,1738824674145,-150.60707059,0.00020154,2]
[351865454,1738824674154,-150.0,0.00020154,2]
[351865455,1738824674163,-150.0,0.00020158,2]
[351865456,1738824674173,-150.0,0.00020162,2]
[351865457,1738824674182,-150.0,0.00020164,2]
[351865458,1738824674192,-150.0,0.00020165,2]
[351865459,1738824674201,-1631.49245873,0.00020169,2]